fUSD/lending_fUSD_20241016
["ID","MTS","AMOUNT","RATE_DAILY","PERIOD"]
[340350791,1729082558055,-100000.0,0.000419,120]
[340350792,1729082558079,-459.70667161,0.00041927,30]
[340350793,1729082558103,-217.43487302,0.00041927,30]
[340350794,1729082558128,-150.0,0.00041946,30]
[340350795,1729082558152,-150.0,0.00041946,30]
[340350796,1729082558176,-150.0,0.00041946,30]
[340350797,1729082558199,-20167.60097993,0.0004199,120]
[340350798,1729082562335,-1000.0,0.00040548,60]
[340350799,1729082562362,-44076.76577021,0.0004199,120]
[340350800,1729082562390,-50000.0,0.00042,42]
[340350801,1729082562417,-50000.0,0.00042,52]
[340350802,1729082562442,-900.0,0.00042,43]
[340350803,1729082562465,-520.24140731,0.00042,120]
[340350804,1729082562490,-2300.0,0.00042,120]
[340350805,1729082562514,-1619.87474497,0.00042,120]
[340350806,1729082562538,-500.0,0.00042,120]
[340350807,1729082562561,-2152.0,0.00042,120]
[340350808,1729082562585,-86141.35018182,0.00042,30]
[340350809,1729082562608,-1805.99396032,0.00042,120]
[340350810,1729082562631,-1000.0,0.00042,120]
[340350811,1729082562654,-1000.0,0.00042,120]
[340350812,1729082562676,-1000.0,0.00042,120]
[340350813,1729082562699,-1000.0,0.00042,120]
[340350814,1729082562722,-1000.0,0.00042,120]
[340350815,1729082562744,-1000.0,0.00042,120]
[340350816,1729082562767,-1000.0,0.00042,120]
[340350817,1729082562790,-1000.0,0.00042,120]
[340350818,1729082562814,-1000.0,0.00042,120]
[340350819,1729082562836,-1000.0,0.00042,120]
[340350820,1729082562859,-1000.0,0.00042,120]
[340350821,1729082562882,-1000.0,0.00042,120]
[340350822,1729082562906,-508.61214769,0.00042,120]
[340350823,1729082562929,-1000.0,0.00042,120]
[340350824,1729082562953,-1000.0,0.00042,120]
[340350825,1729082562979,-1000.0,0.00042,120]
[340350826,1729082563003,-1000.0,0.00042,120]
[340350827,1729082563027,-1000.0,0.00042,120]
[340350828,1729082563050,-1000.0,0.00042,120]
[340350829,1729082563073,-1000.0,0.00042,120]
[340350830,1729082563095,-1000.0,0.00042,120]
[340350831,1729082563117,-1000.0,0.00042,120]
[340350832,1729082563141,-1000.0,0.00042,120]
[340350833,1729082563166,-1000.0,0.00042,120]
[340350834,1729082563189,-1000.0,0.00042,120]
[340350835,1729082563216,-1000.0,0.00042,120]
[340350836,1729082563240,-1000.0,0.00042,120]
[340350837,1729082563268,-1001.99941101,0.00042,120]
[340350838,1729082563292,-35000.0,0.00042,60]
[340350839,1729082563318,-150.0,0.00042037,120]
[340350840,1729082563344,-150.0,0.00042087,120]
[340350841,1729082563371,-459.70667161,0.00042117,30]
[340350842,1729082563395,-217.43487302,0.00042117,30]
[340350843,1729082563423,-500.0,0.00042176,120]
[340350844,1729082563447,-444.22070665,0.0004222,120]
[340350845,1729082563474,-150.0,0.00042245,120]
[340350846,1729082563498,-459.70667161,0.00042307,30]
[340350847,1729082563522,-217.43487302,0.00042307,30]
[340350848,1729082563545,-150.0,0.00042342,30]
[340350849,1729082563568,-150.0,0.00042484,30]
[340350850,1729082563593,-459.70667161,0.00042498,30]
[340350851,1729082563617,-217.43487302,0.00042498,30]
[340350852,1729082563641,-2000.0,0.000425,30]
[340350853,1729082563666,-4000.0,0.000425,60]
[340350854,1729082563691,-31997.78374488,0.000425,120]
[340350855,1729082563715,-150.0,0.00042574,30]
[340350856,1729082563740,-589.09604489,0.000426,120]
[340350857,1729082563926,-459.70667161,0.00042688,30]
[340350858,1729082563952,-217.43487302,0.00042688,30]
[340350859,1729082563976,-2000.0,0.0004274,60]
[340350860,1729082564001,-150.0,0.00042755,120]
[340350861,1729082564025,-1147.98710045,0.000428,60]
[340350862,1729082564048,-381.19152459,0.000428,120]
[340350863,1729082564072,-150.0,0.00042802,120]
[340350864,1729082564096,-1304.7,0.00042809,120]
[340350865,1729082564120,-150.0,0.00042838,30]
[340350866,1729082564145,-150.0,0.00042867,120]
[340350867,1729082564168,-459.70667161,0.00042878,30]
[340350868,1729082564191,-217.43487302,0.00042878,30]
[340350869,1729082564215,-150.0,0.00042888,30]
[340350870,1729082564237,-628.03297273,0.00042898,120]
[340350871,1729082564261,-565.00558776,0.00042898,90]
[340350872,1729082564284,-372.34765012,0.000429,30]
[340350873,1729082564308,-172.0435243,0.000429,30]
[340350874,1729082564332,-953.16120541,0.000429,60]
[340350875,1729082564357,-394.43916904,0.000429,60]
[340350876,1729082564383,-150.0,0.000429,120]
[340350877,1729082564409,-50000.0,0.00043,43]
[340350878,1729082564440,-50000.0,0.00043,53]
[340350879,1729082564464,-1136.71610492,0.00043,30]
[340350880,1729082564490,-287.63820874,0.00043,120]
[340350881,1729082564514,-800.0,0.00043,120]
[340350882,1729082564538,-50000.0,0.00043,120]
[340350883,1729082564561,-13000.0,0.00043,30]
[340350884,1729082564586,-25000.0,0.00043,120]
[340350885,1729082564610,-900.0,0.00043,44]
[340350886,1729082564643,-4449.46094295,0.00043,120]
[340350887,1729082564666,-358.0,0.00043,120]
[340350888,1729082564690,-353.49511233,0.00043,120]
[340350889,1729082564717,-499.76879446,0.00043,30]
[340350890,1729082564741,-10000.0,0.00043,30]
[340350891,1729082564765,-432.99954327,0.00043,120]
[340350892,1729082564790,-3033.57073853,0.00043,120]
[340350893,1729082564816,-1777.93771504,0.00043,120]
[340350894,1729082564842,-35000.0,0.00043,90]
[340350895,1729082564866,-185.89,0.00043014,120]
[340350896,1729082564891,-2000.0,0.00043014,60]
[340350897,1729082564915,-459.70667161,0.00043068,30]
[340350898,1729082564940,-217.43487302,0.00043068,30]
[340350899,1729082564963,-170.34623,0.00043088,30]
[340350900,1729082564987,-500.0,0.00043093,120]
[340350901,1729082565011,-150.0,0.00043157,30]
[340350902,1729082565035,-1014.52,0.0004317,66]
[340350903,1729082565058,-151.27678,0.000432,120]
[340350904,1729082565082,-317.99286421,0.000432,30]
[340350905,1729082565106,-1355.24783607,0.000432,30]
[340350906,1729082565132,-150.0,0.00043201,30]
[340350907,1729082565158,-459.70667161,0.00043258,30]
[340350908,1729082565182,-217.43487302,0.00043258,30]
[340350909,1729082565207,-170.34623,0.00043288,30]
[340350910,1729082565231,-2000.0,0.00043288,60]
[340350911,1729082565256,-972.97,0.000433,120]
[340350912,1729082565280,-150.0,0.00043333,30]
[340350913,1729082565305,-150.0,0.00043366,120]
[340350914,1729082565328,-1000.0,0.00043434,60]
[340350915,1729082565354,-459.70667161,0.00043449,30]
[340350916,1729082565381,-217.43487302,0.00043449,30]
[340350917,1729082565406,-150.0,0.00043462,120]
[340350918,1729082565433,-170.34623,0.00043488,30]
[340350919,1729082565456,-172.0,0.000435,120]
[340350920,1729082565481,-2000.0,0.000435,120]
[340350921,1729082565508,-50000.0,0.0004355,120]
[340350922,1729082565532,-2000.0,0.00043562,60]
[340350923,1729082565558,-1224.29995909,0.000436,30]
[340350924,1729082565582,-4404.0,0.000436,36]
[340350925,1729082565607,-459.70667161,0.00043639,30]
[340350926,1729082565634,-217.43487302,0.00043639,30]
[340350927,1729082565658,-170.34623,0.00043688,30]
[340350928,1729082565682,-750.56058776,0.000437,120]
[340350929,1729082565707,-182.1800535,0.000437,60]
[340350930,1729082565731,-150.0,0.00043726,120]
[340350931,1729082565756,-412.0,0.00043796,90]
[340350932,1729082565781,-5000.0,0.00043799,120]
[340350933,1729082565809,-6245.665,0.000438,60]
[340350934,1729082565834,-274.92178368,0.000438,120]
[340350935,1729082565863,-467.48710076,0.000438,30]
[340350936,1729082565888,-395.50924966,0.000438,120]
[340350937,1729082565914,-1237.11831421,0.000438,120]
[340350938,1729082565939,-284.50495717,0.00043829,30]
[340350939,1729082565965,-158.70298654,0.00043829,30]
[340350940,1729082565990,-459.70667161,0.00043829,30]
[340350941,1729082566017,-172.17923082,0.00043829,30]
[340350942,1729082566043,-217.43487302,0.00043829,30]
[340350943,1729082566067,-199.85657874,0.00043829,30]
[340350944,1729082566092,-231.1491661,0.00043829,30]
[340350945,1729082566115,-259.72601843,0.00043829,30]
[340350946,1729082566141,-168.05316001,0.00043829,30]
[340350947,1729082566166,-217.23460112,0.00043829,30]
[340350948,1729082566190,-2332.51,0.00043835,120]
[340350949,1729082566226,450.0,0.00040404,120]
[340350950,1729082566439,1000.0,0.0004056,46]
[340350951,1729082566643,1000.0,0.00040677,120]
[340350952,1729082566686,450.0,0.00040548,60]
[340350953,1729082566749,450.0,0.0004056,46]
[340350954,1729082566947,1000.0,0.00040822,60]
[340350955,1729082566997,450.0,0.00040677,120]
[340350956,1729082567079,450.0,0.00040822,60]
[340350957,1729082574987,500.0,0.00035616,60]
[340350958,1729082593704,-500.0,0.00035616,60]
[340350959,1729082593735,-500.0,0.00036164,60]
[340350960,1729082593761,-500.0,0.00036712,60]
[340350961,1729082593786,-500.0,0.00036712,60]
[340350962,1729082593811,-500.0,0.0003726,60]
[340350963,1729082593838,-500.0,0.00037808,60]
[340350964,1729082593864,-500.0,0.00037808,60]
[340350965,1729082593891,-500.0,0.00038904,60]
[340350966,1729082593915,-500.0,0.00038904,60]
[340350967,1729082593945,-500.0,0.0004,60]
[340350968,1729082593970,-500.0,0.0004,60]
[340350969,1729082594000,-500.0,0.00041096,60]
[340350970,1729082594025,-500.0,0.00041096,60]
[340350971,1729082594051,-174.35,0.00041123,30]
[340350972,1729082594077,-500.0,0.00042192,60]
[340350973,1729082594101,-500.0,0.00043288,60]
[340350974,1729082594126,-868.53,0.00043836,120]
[340350975,1729082594152,-2000.0,0.00043836,60]
[340350976,1729082594176,-466605.898839,0.0004388,30]
[340350977,1729082594203,-163.0611,0.00043888,30]
[340350978,1729082594228,-126131.0,0.000439,120]
[340350979,1729082594254,-50000.0,0.00044,44]
[340350980,1729082594282,-50000.0,0.00044,54]
[340350981,1729082594306,-600.0,0.00044,120]
[340350982,1729082594331,-900.0,0.00044,45]
[340350983,1729082594354,-242.85565393,0.00044,30]
[340350984,1729082594378,-500.0,0.00044,120]
[340350985,1729082594407,-946.5890378,0.00044,120]
[340350986,1729082594432,-3828.0,0.00044,60]
[340350987,1729082594456,-10000.0,0.00044,120]
[340350988,1729082594481,-500.0,0.00044011,120]
[340350989,1729082594505,-170.34623,0.00044088,30]
[340350990,1729082594529,-2332.51,0.00044246,120]
[340350991,1729082594552,-170.34623,0.00044288,30]
[340350992,1729082594577,-957.8261768,0.000443,120]
[340350993,1729082594600,-438.45,0.00044384,120]
[340350994,1729082594624,-499.53,0.00044384,120]
[340350995,1729082594650,-500.0,0.00044384,120]
[340350996,1729082594674,-459.69529936,0.000444,30]
[340350997,1729082594698,-1138.615641,0.00044475,77]
[340350998,1729082594724,-170.34623,0.00044488,30]
[340350999,1729082594750,-2332.51,0.00044657,120]
[340351000,1729082594777,-170.34623,0.00044688,30]
[340351001,1729082594802,-150.0,0.00044693,120]
[340351002,1729082594829,-6278.22254672,0.000447,120]
[340351003,1729082594854,-816.19161,0.000448,30]
[340351004,1729082594877,-230.74552,0.000448,120]
[340351005,1729082594903,-152.960399,0.000448,30]
[340351006,1729082594927,-158.64381,0.000448,30]
[340351007,1729082594951,-1022116.60385746,0.000448,120]
[340351008,1729082594975,-67663.08470288,0.000448,60]
[340351009,1729082594999,-1144.41542924,0.0004489,120]
[340351010,1729082595023,-161.49104,0.000449,120]
[340351011,1729082595047,-210.34871,0.000449,120]
[340351012,1729082595072,-151.27678,0.000449,120]
[340351013,1729082595096,-500.0,0.00044929,120]
[340351014,1729082595125,-10000.0,0.0004498,100]
[340351015,1729082595161,-50000.0,0.00045,45]
[340351016,1729082595187,-50000.0,0.00045,55]
[340351017,1729082595365,-782.5037948,0.00045,120]
[340351018,1729082595390,-218.42741724,0.00045,120]
[340351019,1729082595421,-241.0,0.00045,120]
[340351020,1729082595449,-949.0,0.00045,120]
[340351021,1729082595472,-845.06621439,0.00045,120]
[340351022,1729082595496,-267.05213725,0.00045,120]
[340351023,1729082595522,-3530.0,0.00045,120]
[340351024,1729082595546,-3000.0,0.00045,90]
[340351025,1729082595569,-229.48855108,0.00045,120]
[340351026,1729082595595,-1320.71003263,0.00045,60]
[340351027,1729082595618,-5000.0,0.00045,120]
[340351028,1729082595642,-150.0,0.00045,30]
[340351029,1729082595669,-280.32022826,0.00045,120]
[340351030,1729082595692,-900.0,0.00045,46]
[340351031,1729082595716,-188.0,0.00045,120]
[340351032,1729082595741,-42063.64055116,0.00045,60]
[340351033,1729082599560,-500.0,0.00042192,60]
[340351034,1729082599588,-500.0,0.00043288,60]
[340351035,1729082599615,-500.0,0.00044384,120]
[340351036,1729082599641,-37267.7047416,0.00045,60]
[340351037,1729082599667,-4770.69583748,0.00045,120]
[340351038,1729082599691,-158.11120028,0.00045,30]
[340351039,1729082599715,-10000.0,0.00045,120]
[340351040,1729082599741,-150.0,0.00045041,120]
[340351041,1729082599765,-2332.51,0.00045068,120]
[340351042,1729082599788,-2020.60573856,0.0004526,120]
[340351043,1729082599814,-1304.7,0.00045393,120]
[340351044,1729082599838,-2000.0,0.00045479,120]
[340351045,1729082599864,-2332.51,0.00045479,120]
[340351046,1729082599889,-150.0,0.00045528,120]
[340351047,1729082599916,-150.0,0.00045577,120]
[340351048,1729082599943,-150.0,0.00045682,120]
[340351049,1729082599967,-1392.15992277,0.000457,120]
[340351050,1729082599992,-2000.0,0.00045753,120]
[340351051,1729082600018,-2332.51,0.0004589,120]
[340351052,1729082600043,-50000.0,0.0004596,120]
[340351053,1729082600071,-50000.0,0.00046,46]
[340351054,1729082600098,-50000.0,0.00046,56]
[340351055,1729082600123,-271.04349202,0.00046,120]
[340351056,1729082600149,-1000.0,0.00046,30]
[340351057,1729082600175,-1131.36290584,0.00046,120]
[340351058,1729082600199,-470.97506421,0.00046,30]
[340351059,1729082600224,-626.34856343,0.00046,120]
[340351060,1729082600249,-500.0,0.00046,120]
[340351061,1729082600273,-800.0,0.00046,120]
[340351062,1729082600298,-900.0,0.00046,47]
[340351063,1729082600324,-18067.0,0.00046,30]
[340351064,1729082600349,-3791.96342317,0.00046,120]
[340351065,1729082600374,-2222.4221438,0.00046,120]
[340351066,1729082600399,-11468.0,0.00046,120]
[340351067,1729082600427,-10000.0,0.00046,120]
[340351068,1729082600453,-2000.0,0.00046027,120]
[340351069,1729082600478,-498.42344601,0.000462,120]
[340351070,1729082600502,-592.31678164,0.000463,120]
[340351071,1729082600530,-2000.0,0.00046301,120]
[340351072,1729082600554,-2332.51,0.00046301,120]
[340351073,1729082600580,-40722.36002514,0.0004637,120]
[340351074,1729082600604,-230.74552,0.000464,120]
[340351075,1729082600628,-321.94177987,0.000465,120]
[340351076,1729082600654,-2000.0,0.00046575,120]
[340351077,1729082600679,-500.0,0.00046575,30]
[340351078,1729082600703,-534.74196476,0.00046575,30]
[340351079,1729082600734,300.0,0.00043835,120]
[340351080,1729082600777,300.0,0.00044109,120]
[340351081,1729082601323,500.0,0.00039445,60]
[340351082,1729082601360,300.0,0.00044383,120]
[340351083,1729082601426,300.0,0.00044657,120]
[340351084,1729082601459,300.0,0.00044931,120]
[340351085,1729082601523,500.0,0.00044932,120]
[340351086,1729082601554,300.0,0.00045205,120]
[340351087,1729082601582,300.0,0.00045479,120]
[340351088,1729082601634,300.0,0.00045753,120]
[340351089,1729082601681,300.0,0.00046027,120]
[340351090,1729082601721,300.0,0.00046301,120]
[340351091,1729082601806,300.0,0.00046575,120]
[340351092,1729082601839,500.0,0.00040541,60]
[340351093,1729082602165,500.0,0.0004548,120]
[340351094,1729082602711,300.0,0.00043835,120]
[340351095,1729082602827,600.0,0.00041637,60]
[340351096,1729082602908,300.0,0.00044109,120]
[340351097,1729082603110,300.0,0.00044383,120]
[340351098,1729082603309,300.0,0.00044657,120]
[340351099,1729082603546,300.0,0.00044931,120]
[340351100,1729082603887,500.0,0.00046028,120]
[340351101,1729082603954,300.0,0.00045205,120]
[340351102,1729082604284,300.0,0.00045479,120]
[340351103,1729082604486,300.0,0.00045753,120]
[340351104,1729082604705,300.0,0.00046027,120]
[340351105,1729082604994,300.0,0.00046301,120]
[340351106,1729082605116,300.0,0.00046575,120]
[340351107,1729082611629,292.3,0.00033151,120]
[340351108,1729082611841,292.3,0.00044384,120]
[340351109,1729082648480,-150.0,0.00010899,2]
[340351110,1729082648506,-5121.8518326,0.000109,2]
[340351111,1729082648532,-4728.1481674,0.000109,2]
[340351112,1729082706049,800.0,0.00026986,120]
[340351113,1729082807928,788.79,9.625e-05,2]
[340351117,1729082883177,800.0,0.00026986,120]
[340351129,1729082957154,-980.0,0.000108,2]
[340351131,1729083003744,800.0,0.00026986,120]
[340351150,1729083031539,-786.29632256,0.000108,2]
[340351151,1729083031649,-1548.66989305,0.000108,2]
[340351152,1729083031662,-376.87919875,0.000108,2]
[340351153,1729083031815,-2039.01,0.000108,2]
[340351172,1729083037745,-206.10688564,0.000108,2]
[340351173,1729083037755,-150.0,0.00010877,2]
[340351174,1729083037767,-300.0,0.00010899,2]
[340351175,1729083037777,-3069.45381349,0.000109,2]
[340351176,1729083037787,-162.21683357,0.000109,2]
[340351177,1729083037797,-1509.56121741,0.000109,2]
[340351178,1729083037806,-1000.0,0.000109,2]
[340351179,1729083037817,-214.06767766,0.000109,2]
[340351180,1729083037827,-158.22,0.00010959,2]
[340351181,1729083037837,-1500.0,0.00010959,2]
[340351182,1729083037847,-503.29145163,0.00010973,2]
[340351183,1729083037857,-160.41927101,0.00010973,2]
[340351184,1729083037866,-500.0,0.00010973,2]
[340351185,1729083037878,-392.13007046,0.00010999,2]
[340351186,1729083037888,-500.0,0.00010999,2]
[340351187,1729083037899,-541542.09553613,0.00011,2]
[340351188,1729083037919,-59638.4650646,0.00011,2]
[340351189,1729083037931,-11017.12766794,0.00011,2]
[340351198,1729083039701,-500.0,0.00010999,2]
[340351199,1729083039712,-398.88029464,0.00010999,2]
[340351200,1729083039864,-101.11970536,0.00010999,2]
[340351201,1729083039873,-168.59162465,0.00010999,2]
[340351202,1729083039883,-649.12478607,0.00010999,2]
[340351203,1729083039893,-9081.163942,0.00011,2]
[340351204,1729083039908,-5999.0,0.00011,2]
[340351205,1729083039935,-48539.37073864,0.00011,2]
[340351228,1729083045667,-68090.5597137,0.00011,2]
[340351230,1729083046576,-5439991.68518845,0.00011,2]
[340351231,1729083046589,-3195290.45021629,0.00011,2]
[340351232,1729083046598,-150.0,0.00011,2]
[340351233,1729083046608,-250.0,0.00011,2]
[340351234,1729083046619,-288.6,0.00011,2]
[340351235,1729083046629,-5000.0,0.00011401,2]
[340351236,1729083046639,-5000.0,0.00011401,2]
[340351237,1729083046652,-5000.0,0.00011401,2]
[340351238,1729083046666,-5619.42,0.00011401,2]
[340351239,1729083046677,-256.0,0.000115,2]
[340351240,1729083046687,-499.99,0.000115,2]
[340351241,1729083046696,-472.64,0.000115,2]
[340351242,1729083046706,-200.0,0.00011527,2]
[340351243,1729083046716,-250.0,0.00011561,2]
[340351244,1729083046725,-1000.0,0.00011571,2]
[340351245,1729083046735,-1404.55,0.00011571,2]
[340351246,1729083046745,-1379.39,0.00011577,2]
[340351247,1729083046755,-184.61962726,0.000116,2]
[340351248,1729083046764,-156.12,0.00011602,2]
[340351249,1729083046776,-23870.0,0.00011611,2]
[340351250,1729083046785,-2751.0,0.00011616,2]
[340351251,1729083046795,-250.0,0.00011624,2]
[340351252,1729083046804,-163.35,0.00011669,2]
[340351253,1729083046814,-150.0,0.00011723,2]
[340351254,1729083046823,-181.19,0.00011733,2]
[340351255,1729083046832,-1838.74,0.00011782,2]
[340351256,1729083046842,-5872.74497027,0.00011848,2]
[340351257,1729083046852,-788.79,0.00011889,2]
[340351258,1729083046862,-709.5,0.00011889,2]
[340351259,1729083046872,-159.93766059,0.000119,2]
[340351260,1729083046881,-420.0,0.00011978,2]
[340351261,1729083046891,-600.0,0.00012,2]
[340351262,1729083046901,-1000.0,0.00012342,2]
[340351263,1729083046910,-1509.56121734,0.00012417,2]
[340351264,1729083046920,-291.58787849,0.000125,2]
[340351265,1729083046930,-163.18,0.00012609,2]
[340351266,1729083046939,-250.0,0.00012796,2]
[340351267,1729083046949,-163.35,0.00012836,2]
[340351268,1729083046959,-179.99,0.00012893,2]
[340351269,1729083046969,-2917.13200575,0.00012899,2]
[340351270,1729083046979,-10010.23653603,0.000129,2]
[340351271,1729083046989,-631.35,0.00012932,2]
[340351272,1729083046999,-256.0,0.00012938,2]
[340351273,1729083047009,-4196.61019707,0.00013,2]
[340351274,1729083047018,-810.90743986,0.00013,2]
[340351275,1729083047030,-1000.0,0.00013018,2]
[340351276,1729083047039,-5067.40089372,0.0001305,2]
[340351277,1729083047049,-1370.79,0.00013191,2]
[340351278,1729083047059,-709.5,0.00013376,2]
[340351279,1729083047069,-163.18,0.00013397,2]
[340351280,1729083047078,-3184.38,0.00013425,2]
[340351281,1729083047088,-1000.0,0.000135,2]
[340351282,1729083047097,-500.0,0.00013698,2]
[340351283,1729083047107,-2333.37,0.00013699,2]
[340351284,1729083047116,-200.0,0.00013699,2]
[340351285,1729083047126,-2347.55,0.00013699,2]
[340351286,1729083047136,-500.0,0.00013699,2]
[340351287,1729083047145,-1138.8,0.000137,2]
[340351288,1729083047155,-151.28029161,0.00013773,2]
[340351289,1729083047165,-30505.7371915,0.000138,2]
[340351290,1729083047174,-180.0,0.00013805,2]
[340351291,1729083047184,-1370.79,0.0001385,2]
[340351292,1729083047194,-1509.56121734,0.00013935,2]
[340351293,1729083047204,-650.0,0.00014,2]
[340351294,1729083047213,-163.35,0.00014003,2]
[340351295,1729083047223,-788.79,0.00014153,2]
[340351296,1729083047232,-343.05,0.00014162,2]
[340351297,1729083047242,-163.18,0.00014185,2]
[340351298,1729083047253,-162.21683353,0.00014255,2]
[340351299,1729083047263,-256.0,0.00014375,2]
[340351300,1729083047272,-1000.0,0.00014464,2]
[340351301,1729083047282,-1370.79,0.0001451,2]
[340351302,1729083047291,-343.05,0.00014663,2]
[340351303,1729083047301,-709.5,0.00014862,2]
[340351304,1729083047310,-163.18,0.00014973,2]
[340351305,1729083047320,-228.97,0.00015068,2]
[340351306,1729083047330,-343.05,0.00015164,2]
[340351307,1729083047339,-1370.79,0.00015169,2]
[340351308,1729083047349,-1215.01967579,0.00015235,2]
[340351309,1729083047358,-565.58502372,0.000153,2]
[340351310,1729083047367,-1509.56121734,0.00015452,2]
[340351311,1729083047377,-343.05,0.00015665,2]
[340351312,1729083047386,-163.18,0.00015761,2]
[340351313,1729083047397,-256.0,0.00015813,2]
[340351314,1729083047406,-1370.79,0.00015829,2]
[340351315,1729083047416,-1000.0,0.00015911,2]
[340351316,1729083047425,-700.0,0.00016,2]
[340351317,1729083047435,-343.05,0.00016166,2]
[340351318,1729083047445,-709.5,0.00016348,2]
[340351319,1729083047455,-1138.8,0.000164,2]
[340351320,1729083047467,-788.79,0.00016417,2]
[340351321,1729083047477,-560.0,0.00016431,2]
[340351322,1729083047486,-308.561,0.00016431,2]
[340351323,1729083047497,-1245.0,0.00016431,2]
[340351324,1729083047506,-935.0,0.00016431,2]
[340351325,1729083047516,-555.932,0.00016431,2]
[340351326,1729083047526,-150.0,0.00016431,2]
[340351327,1729083047537,-1909.0,0.00016431,2]
[340351328,1729083047546,-3357.0,0.00016431,2]
[340351329,1729083047556,-809.0,0.00016431,2]
[340351330,1729083047566,-155.548,0.00016431,2]
[340351331,1729083047577,-1150.0,0.00016431,2]
[340351332,1729083047589,-13532.0,0.00016431,2]
[340351333,1729083047599,-5885.0,0.00016431,2]
[340351334,1729083047609,-211.286,0.00016431,2]
[340351335,1729083047619,-1083.0,0.00016431,2]
[340351336,1729083047629,-173.44,0.00016438,2]
[340351337,1729083047639,-154.63,0.00016438,2]
[340351338,1729083047648,-163.18,0.00016549,2]
[340351339,1729083047659,-159.93766059,0.00016567,2]
[340351340,1729083047668,-343.05,0.00016667,2]
[340351341,1729083047678,-152.55,0.00016712,2]
[340351342,1729083047688,-1509.56121734,0.0001697,2]
[340351343,1729083047698,-343.05,0.00017167,2]
[340351344,1729083047708,-256.0,0.00017251,2]
[340351345,1729083047718,-154.63,0.0001726,2]
[340351346,1729083047728,-163.18,0.00017337,2]
[340351347,1729083047737,-1000.0,0.00017357,2]
[340351348,1729083047747,-162.21683353,0.0001761,2]
[340351349,1729083047756,-214.06767764,0.00017729,2]
[340351350,1729083047766,-709.5,0.00017834,2]
[340351351,1729083047776,-288.0,0.00018041,2]
[340351352,1729083047786,-154.63,0.00018082,2]
[340351353,1729083047795,-631.35,0.00018105,2]
[340351354,1729083047804,-163.18,0.00018125,2]
[340351355,1729083047814,-310.45,0.000182,7]
[340351356,1729083047823,-1509.56121734,0.00018487,2]
[340351357,1729083047832,-788.79,0.00018681,2]
[340351358,1729083047842,-154.63,0.00018904,2]
[340351359,1729083047853,-163.18,0.00018913,2]
[340351360,1729083047862,-151.56,0.00019361,2]
[340351361,1729083047872,-560.0,0.00019431,2]
[340351362,1729083047881,-1243.0,0.00019431,2]
[340351363,1729083047891,-935.0,0.00019431,2]
[340351364,1729083047903,-555.0,0.00019431,2]
[340351365,1729083047913,-150.0,0.00019431,2]
[340351366,1729083047923,-1908.0,0.00019431,2]
[340351367,1729083047933,-3356.0,0.00019431,2]
[340351368,1729083047942,-808.0,0.00019431,2]
[340351369,1729083047952,-150.0,0.00019431,2]
[340351370,1729083047961,-1150.0,0.00019431,2]
[340351371,1729083047972,-13529.0,0.00019431,2]
[340351372,1729083047982,-5882.0,0.00019431,2]